[Event "Titled Tuesday Blitz January 18 2022"]
[White "Dounis, Alexandros"]
[Black "Tanenbaum, Zachary"]
[WhiteFideId "4213238"]
[BlackFideId "2060850"]
[WhiteElo "2195"]
[BlackElo "2168"]
[Result "0-1"]
[Round "07"]
[TimeControl "180+1"]
[Date "2022.01.18"]
[WhiteClock "0:00:19"]
[BlackClock "0:00:14"]

1. Nf3 {[%clk 0:03:00]}  d5 {[%clk 0:02:43]} 2. g3 {[%clk 0:02:59]}  Nf6 {[%clk 0:02:43]} 3. Bg2 {[%clk 0:02:59]}  c6 {[%clk 0:02:43]} 4. O-O {[%clk 0:02:59]}  Bf5 {[%clk 0:02:44]} 5. d3 {[%clk 0:02:59]}  Nbd7 {[%clk 0:02:44]} 6. c4 {[%clk 0:02:59]}  dxc4 {[%clk 0:02:43]} 7. dxc4 {[%clk 0:02:59]}  e5 {[%clk 0:02:44]} 8. Nc3 {[%clk 0:02:59]}  Be7 {[%clk 0:02:44]} 9. Nh4 {[%clk 0:02:56]}  Be6 {[%clk 0:02:37]} 10. Qc2 {[%clk 0:02:56]}  O-O {[%clk 0:02:37]} 11. Nf5 {[%clk 0:02:55]}  Bb4 {[%clk 0:02:35]} 12. Rd1 {[%clk 0:02:53]}  Qc7 {[%clk 0:02:33]} 13. Bg5 {[%clk 0:02:48]}  h6 {[%clk 0:02:27]} 14. Bxf6 {[%clk 0:02:41]}  Nxf6 {[%clk 0:02:28]} 15. Ne3 {[%clk 0:02:36]}  Bc5 {[%clk 0:02:24]} 16. Rd3 {[%clk 0:02:22]}  Bxe3 {[%clk 0:02:14]} 17. Rxe3 {[%clk 0:02:22]}  Ng4 {[%clk 0:02:09]} 18. Rf3 {[%clk 0:02:04]}  Bxc4 {[%clk 0:01:54]} 19. Ne4 {[%clk 0:01:43]}  Bd5 {[%clk 0:01:51]} 20. h3 {[%clk 0:01:39]}  f5 {[%clk 0:01:45]} 21. Nc5 {[%clk 0:01:29]}  Bxf3 {[%clk 0:01:10]} 22. Bxf3 {[%clk 0:01:30]}  e4 {[%clk 0:00:52]} 23. hxg4 {[%clk 0:01:11]}  exf3 {[%clk 0:00:52]} 24. Ne6 {[%clk 0:01:11]}  Qf7 {[%clk 0:00:44]} 25. Nxf8 {[%clk 0:01:08]}  Rxf8 {[%clk 0:00:36]} 26. exf3 {[%clk 0:01:05]}  f4 {[%clk 0:00:32]} 27. gxf4 {[%clk 0:00:56]}  Qxf4 {[%clk 0:00:32]} 28. Qb3+ {[%clk 0:00:53]}  Qf7 {[%clk 0:00:31]} 29. Qxf7+ {[%clk 0:00:48]}  Kxf7 {[%clk 0:00:31]} 30. Rd1 {[%clk 0:00:48]}  Ke6 {[%clk 0:00:30]} 31. Kg2 {[%clk 0:00:41]}  Rf7 {[%clk 0:00:30]} 32. Kg3 {[%clk 0:00:40]}  Rd7 {[%clk 0:00:28]} 33. Re1+ {[%clk 0:00:39]}  Kf6 {[%clk 0:00:26]} 34. Re2 {[%clk 0:00:38]}  Rd3 {[%clk 0:00:20]} 35. Kf4 {[%clk 0:00:36]}  c5 {[%clk 0:00:19]} 36. Ke4 {[%clk 0:00:35]}  Rd4+ {[%clk 0:00:19]} 37. Ke3 {[%clk 0:00:34]}  Ke5 {[%clk 0:00:16]} 38. Rc2 {[%clk 0:00:31]}  c4 {[%clk 0:00:15]} 39. a4 {[%clk 0:00:26]}  b6 {[%clk 0:00:15]} 40. Rc3 {[%clk 0:00:25]}  a6 {[%clk 0:00:14]} 41. b3 {[%clk 0:00:22]}  b5 {[%clk 0:00:14]} 42. axb5 {[%clk 0:00:20]}  axb5 {[%clk 0:00:15]} 43. bxc4 {[%clk 0:00:20]}  bxc4 {[%clk 0:00:15]} 44. Ra3 {[%clk 0:00:20]}  Rd3+ {[%clk 0:00:14]} 45. Rxd3 {[%clk 0:00:19]}  cxd3 {[%clk 0:00:15]} 46. Kxd3 {[%clk 0:00:19]}  Kf4 {[%clk 0:00:15]} 47. Ke2 {[%clk 0:00:19]}  g5 {[%clk 0:00:13]} 48. Kf1 {[%clk 0:00:15]}  Kxf3 {[%clk 0:00:14]} 49. Kg1 {[%clk 0:00:15]}  Kxg4 {[%clk 0:00:15]} 50. Kg2 {[%clk 0:00:16]}  h5 {[%clk 0:00:14]} 51. Kh2 {[%clk 0:00:15]}  Kf3 {[%clk 0:00:14]} 52. Kg1 {[%clk 0:00:16]}  h4 {[%clk 0:00:14]} 53. Kf1 {[%clk 0:00:17]}  h3 {[%clk 0:00:14]} 54. Kg1 {[%clk 0:00:18]}  g4 {[%clk 0:00:14]} 55. Kh2 {[%clk 0:00:18]}  Kxf2 {[%clk 0:00:14]} 56. Kh1 {[%clk 0:00:19]}  h2 {[%clk 0:00:13]} 57. Kxh2 {[%clk 0:00:20]}  g3+ {[%clk 0:00:13]} 58. Kh3 {[%clk 0:00:19]}  g2 {[%clk 0:00:14]} 0-1


[Site "https://www.chess.com"]

[Event "Titled Tuesday Blitz January 18 2022"]
[White "Ezat, Mohamed"]
[Black "Pajeken, Jakob Leon"]
[WhiteFideId "10600906"]
[BlackFideId "12942839"]
[WhiteElo "2386"]
[BlackElo "2351"]
[Result "1-0"]
[Round "07"]
[TimeControl "180+1"]
[Date "2022.01.18"]
[WhiteClock "0:00:18"]
[BlackClock "0:00:29"]

1. d4 {[%clk 0:03:00]}  d5 {[%clk 0:02:59]} 2. c4 {[%clk 0:03:01]}  dxc4 {[%clk 0:03:00]} 3. e4 {[%clk 0:02:59]}  Nf6 {[%clk 0:02:59]} 4. e5 {[%clk 0:02:58]}  Nd5 {[%clk 0:02:59]} 5. Bxc4 {[%clk 0:02:59]}  Bf5 {[%clk 0:03:00]} 6. Nf3 {[%clk 0:02:46]}  e6 {[%clk 0:02:57]} 7. Nc3 {[%clk 0:02:46]}  Nb6 {[%clk 0:02:56]} 8. Bb3 {[%clk 0:02:45]}  Nc6 {[%clk 0:02:50]} 9. O-O {[%clk 0:02:44]}  Be7 {[%clk 0:02:48]} 10. a4 {[%clk 0:02:39]}  Na5 {[%clk 0:02:45]} 11. Ba2 {[%clk 0:02:38]}  Qd7 {[%clk 0:02:31]} 12. Bg5 {[%clk 0:02:30]}  h6 {[%clk 0:02:24]} 13. Bxe7 {[%clk 0:02:29]}  Qxe7 {[%clk 0:02:25]} 14. d5 {[%clk 0:02:29]}  O-O {[%clk 0:02:20]} 15. Nd4 {[%clk 0:02:09]}  Nac4 {[%clk 0:02:10]} 16. Nxf5 {[%clk 0:02:06]}  exf5 {[%clk 0:02:11]} 17. Re1 {[%clk 0:01:54]}  Nxe5 {[%clk 0:02:09]} 18. Qd4 {[%clk 0:01:46]}  Rfe8 {[%clk 0:01:14]} 19. f4 {[%clk 0:01:39]}  Nf3+ {[%clk 0:01:14]} 20. gxf3 {[%clk 0:01:39]}  Qxe1+ {[%clk 0:01:14]} 21. Rxe1 {[%clk 0:01:38]}  Rxe1+ {[%clk 0:01:15]} 22. Kf2 {[%clk 0:01:39]}  Rae8 {[%clk 0:01:14]} 23. a5 {[%clk 0:01:23]}  Nc8 {[%clk 0:01:13]} 24. Bc4 {[%clk 0:01:16]}  Rh1 {[%clk 0:01:11]} 25. Kg2 {[%clk 0:01:15]}  Rc1 {[%clk 0:01:09]} 26. Bd3 {[%clk 0:01:13]}  Nd6 {[%clk 0:01:05]} 27. Qxa7 {[%clk 0:01:08]}  Ree1 {[%clk 0:01:05]} 28. Qb8+ {[%clk 0:00:59]}  Kh7 {[%clk 0:01:04]} 29. Qxc7 {[%clk 0:00:59]}  Ne8 {[%clk 0:00:53]} 30. Qxf7 {[%clk 0:00:55]}  Nd6 {[%clk 0:00:47]} 31. Qd7 {[%clk 0:00:39]}  Rg1+ {[%clk 0:00:43]} 32. Kf2 {[%clk 0:00:38]}  Rg6 {[%clk 0:00:43]} 33. Bxf5 {[%clk 0:00:33]}  Nxf5 {[%clk 0:00:44]} 34. Qxf5 {[%clk 0:00:33]}  Rg1 {[%clk 0:00:44]} 35. d6 {[%clk 0:00:30]}  Kg8 {[%clk 0:00:30]} 36. d7 {[%clk 0:00:23]}  R1g2+ {[%clk 0:00:30]} 37. Ke3 {[%clk 0:00:23]}  Rd6 {[%clk 0:00:30]} 38. Qd5+ {[%clk 0:00:18]}  Rxd5 {[%clk 0:00:29]} 39. Nxd5 {[%clk 0:00:18]} 1-0


[Site "https://www.chess.com"]

[Event "Titled Tuesday Blitz January 18 2022"]
[White "Gelman, Alexander"]
[Black "Nguyen Hong Nhung"]
[WhiteFideId "4118316"]
[BlackFideId "12412201"]
[WhiteElo "2375"]
[BlackElo "1661"]
[Result "0-1"]
[Round "07"]
[TimeControl "180+1"]
[Date "2022.01.18"]
[WhiteClock "0:00:01"]
[BlackClock "0:00:11"]

1. d4 {[%clk 0:03:00]}  f5 {[%clk 0:02:59]} 2. g4 {[%clk 0:02:57]}  fxg4 {[%clk 0:02:59]} 3. h3 {[%clk 0:02:57]}  g3 {[%clk 0:02:59]} 4. fxg3 {[%clk 0:02:54]}  Nf6 {[%clk 0:02:57]} 5. Nc3 {[%clk 0:02:54]}  d5 {[%clk 0:02:57]} 6. Bg5 {[%clk 0:02:52]}  Bf5 {[%clk 0:02:55]} 7. g4 {[%clk 0:02:45]}  Bg6 {[%clk 0:02:54]} 8. Nf3 {[%clk 0:02:44]}  Nbd7 {[%clk 0:02:34]} 9. Qd2 {[%clk 0:02:42]}  c6 {[%clk 0:02:25]} 10. Bg2 {[%clk 0:02:39]}  Qb6 {[%clk 0:02:18]} 11. O-O-O {[%clk 0:02:35]}  O-O-O {[%clk 0:02:08]} 12. Nh4 {[%clk 0:02:34]}  e5 {[%clk 0:01:59]} 13. Nxg6 {[%clk 0:02:32]}  hxg6 {[%clk 0:02:00]} 14. e3 {[%clk 0:02:18]}  Bd6 {[%clk 0:01:54]} 15. Rhf1 {[%clk 0:02:11]}  e4 {[%clk 0:01:52]} 16. Ne2 {[%clk 0:01:59]}  Nh7 {[%clk 0:01:46]} 17. Bxd8 {[%clk 0:01:57]}  Qxd8 {[%clk 0:01:44]} 18. Nf4 {[%clk 0:01:57]}  g5 {[%clk 0:01:39]} 19. Ng6 {[%clk 0:01:25]}  Re8 {[%clk 0:01:35]} 20. c4 {[%clk 0:01:25]}  Re6 {[%clk 0:01:28]} 21. cxd5 {[%clk 0:01:15]}  cxd5 {[%clk 0:01:18]} 22. Ne5 {[%clk 0:01:10]}  Nxe5 {[%clk 0:01:13]} 23. dxe5 {[%clk 0:01:10]}  Rxe5 {[%clk 0:01:13]} 24. Kb1 {[%clk 0:01:06]}  Nf6 {[%clk 0:01:11]} 25. Rf5 {[%clk 0:00:47]}  Rxf5 {[%clk 0:01:08]} 26. gxf5 {[%clk 0:00:48]}  Be5 {[%clk 0:01:05]} 27. Qb4 {[%clk 0:00:43]}  Kb8 {[%clk 0:00:59]} 28. Bxe4 {[%clk 0:00:39]}  a5 {[%clk 0:00:51]} 29. Qb5 {[%clk 0:00:23]}  Nxe4 {[%clk 0:00:48]} 30. Rxd5 {[%clk 0:00:23]}  Qc8 {[%clk 0:00:31]} 31. Qd3 {[%clk 0:00:13]}  Qxf5 {[%clk 0:00:20]} 32. a3 {[%clk 0:00:05]}  Nd2+ {[%clk 0:00:18]} 33. Ka2 {[%clk 0:00:02]}  Qxd3 {[%clk 0:00:17]} 34. Rxd3 {[%clk 0:00:03]}  Nc4 {[%clk 0:00:17]} 35. b3 {[%clk 0:00:02]}  Nb6 {[%clk 0:00:15]} 36. Rd8+ {[%clk 0:00:02]}  Kc7 {[%clk 0:00:14]} 37. Re8 {[%clk 0:00:03]}  Bf6 {[%clk 0:00:14]} 38. Kb1 {[%clk 0:00:02]}  Nd5 {[%clk 0:00:14]} 39. Kc2 {[%clk 0:00:01]}  Kd7 {[%clk 0:00:13]} 40. Rb8 {[%clk 0:00:01]}  Kc7 {[%clk 0:00:11]} 0-1


[Site "https://www.chess.com"]

[Event "Titled Tuesday Blitz January 18 2022"]
[White "Hasangatin, Ramil"]
[Black "Demchenko, Anton"]
[WhiteFideId "4122160"]
[BlackFideId "4160258"]
[WhiteElo "2651"]
[BlackElo "2877"]
[Result "0-1"]
[Round "07"]
[TimeControl "180+1"]
[Date "2022.01.18"]
[WhiteClock "0:00:01"]
[BlackClock "0:00:03"]

1. d4 {[%clk 0:03:00]}  Nf6 {[%clk 0:03:00]} 2. Nc3 {[%clk 0:03:01]}  d5 {[%clk 0:02:59]} 3. Bg5 {[%clk 0:03:00]}  h6 {[%clk 0:02:56]} 4. Bxf6 {[%clk 0:02:58]}  exf6 {[%clk 0:02:57]} 5. e3 {[%clk 0:02:58]}  c6 {[%clk 0:02:52]} 6. Nf3 {[%clk 0:02:51]}  Bd6 {[%clk 0:02:46]} 7. Bd3 {[%clk 0:02:51]}  O-O {[%clk 0:02:46]} 8. Ne2 {[%clk 0:02:51]}  Qb6 {[%clk 0:02:40]} 9. b3 {[%clk 0:02:49]}  Re8 {[%clk 0:02:33]} 10. O-O {[%clk 0:02:48]}  Nd7 {[%clk 0:02:31]} 11. c4 {[%clk 0:02:43]}  dxc4 {[%clk 0:02:28]} 12. bxc4 {[%clk 0:02:44]}  c5 {[%clk 0:02:28]} 13. Nc3 {[%clk 0:02:41]}  Qa5 {[%clk 0:02:26]} 14. Nd5 {[%clk 0:02:29]}  Nb6 {[%clk 0:02:25]} 15. Nxb6 {[%clk 0:01:55]}  axb6 {[%clk 0:02:24]} 16. Nd2 {[%clk 0:01:55]}  Bc7 {[%clk 0:02:13]} 17. Nb3 {[%clk 0:01:52]}  Qa3 {[%clk 0:02:13]} 18. Qf3 {[%clk 0:01:46]}  Rb8 {[%clk 0:02:03]} 19. Bf5 {[%clk 0:01:39]}  Qb4 {[%clk 0:01:56]} 20. Bxc8 {[%clk 0:01:38]}  Rexc8 {[%clk 0:01:57]} 21. Rac1 {[%clk 0:01:33]}  Bd6 {[%clk 0:01:56]} 22. Qd5 {[%clk 0:01:25]}  Bf8 {[%clk 0:01:54]} 23. Rc2 {[%clk 0:01:15]}  Rc7 {[%clk 0:01:54]} 24. Rfc1 {[%clk 0:01:15]}  Rbc8 {[%clk 0:01:53]} 25. g3 {[%clk 0:01:15]}  g6 {[%clk 0:01:44]} 26. Kg2 {[%clk 0:01:11]}  f5 {[%clk 0:01:42]} 27. h4 {[%clk 0:01:11]}  h5 {[%clk 0:01:42]} 28. Nd2 {[%clk 0:01:05]}  Qa4 {[%clk 0:01:39]} 29. Nf3 {[%clk 0:01:03]}  Rd7 {[%clk 0:01:37]} 30. Qe5 {[%clk 0:01:00]}  Qc6 {[%clk 0:00:58]} 31. d5 {[%clk 0:00:43]}  Qa4 {[%clk 0:00:51]} 32. Qf6 {[%clk 0:00:37]}  Rd6 {[%clk 0:00:48]} 33. Qb2 {[%clk 0:00:35]}  Ra8 {[%clk 0:00:40]} 34. Qb3 {[%clk 0:00:34]}  Qe8 {[%clk 0:00:39]} 35. Kg1 {[%clk 0:00:23]}  Ra6 {[%clk 0:00:39]} 36. Rb1 {[%clk 0:00:22]}  Rd8 {[%clk 0:00:36]} 37. Qd3 {[%clk 0:00:22]}  Rda8 {[%clk 0:00:33]} 38. Rcb2 {[%clk 0:00:21]}  Qd8 {[%clk 0:00:27]} 39. Rb3 {[%clk 0:00:19]}  Bd6 {[%clk 0:00:26]} 40. Ng5 {[%clk 0:00:19]}  Bc7 {[%clk 0:00:25]} 41. e4 {[%clk 0:00:19]}  fxe4 {[%clk 0:00:24]} 42. Qxe4 {[%clk 0:00:20]}  Qe8 {[%clk 0:00:16]} 43. Qf3 {[%clk 0:00:17]}  Rxa2 {[%clk 0:00:14]} 44. d6 {[%clk 0:00:16]}  Bxd6 {[%clk 0:00:12]} 45. Qxb7 {[%clk 0:00:16]}  R8a7 {[%clk 0:00:03]} 46. Qd5 {[%clk 0:00:16]}  Bf8 {[%clk 0:00:02]} 47. Rf3 {[%clk 0:00:16]}  Rd7 {[%clk 0:00:02]} 48. Qe4 {[%clk 0:00:12]}  Qxe4 {[%clk 0:00:02]} 49. Nxe4 {[%clk 0:00:12]}  Bg7 {[%clk 0:00:03]} 50. Rxb6 {[%clk 0:00:11]}  Rd4 {[%clk 0:00:02]} 51. Nf6+ {[%clk 0:00:10]}  Bxf6 {[%clk 0:00:02]} 52. Rbxf6 {[%clk 0:00:09]}  Ra7 {[%clk 0:00:02]} 53. R6f4 {[%clk 0:00:09]}  Rxf4 {[%clk 0:00:02]} 54. Rxf4 {[%clk 0:00:10]}  Rd7 {[%clk 0:00:03]} 55. Kg2 {[%clk 0:00:08]}  Kf8 {[%clk 0:00:04]} 56. Re4 {[%clk 0:00:08]}  Rd3 {[%clk 0:00:03]} 57. Kf1 {[%clk 0:00:07]}  Rd2 {[%clk 0:00:04]} 58. Ke1 {[%clk 0:00:08]}  Rd6 {[%clk 0:00:04]} 59. Ke2 {[%clk 0:00:08]}  f6 {[%clk 0:00:05]} 60. Ke3 {[%clk 0:00:07]}  Kf7 {[%clk 0:00:05]} 61. f3 {[%clk 0:00:07]}  Rb6 {[%clk 0:00:05]} 62. g4 {[%clk 0:00:06]}  Rb3+ {[%clk 0:00:06]} 63. Kf4 {[%clk 0:00:06]}  hxg4 {[%clk 0:00:06]} 64. fxg4 {[%clk 0:00:06]}  Rh3 {[%clk 0:00:06]} 65. Re1 {[%clk 0:00:02]}  Rxh4 {[%clk 0:00:06]} 66. Kg3 {[%clk 0:00:02]}  Rh8 {[%clk 0:00:05]} 67. Rd1 {[%clk 0:00:02]}  Re8 {[%clk 0:00:05]} 68. Rd5 {[%clk 0:00:02]}  Re5 {[%clk 0:00:05]} 69. Rd7+ {[%clk 0:00:02]}  Ke6 {[%clk 0:00:05]} 70. Rd8 {[%clk 0:00:01]}  g5 {[%clk 0:00:04]} 71. Re8+ {[%clk 0:00:01]}  Kd7 {[%clk 0:00:05]} 72. Rf8 {[%clk 0:00:01]}  Ke7 {[%clk 0:00:05]} 73. Rc8 {[%clk 0:00:01]}  Kd7 {[%clk 0:00:02]} 74. Rf8 {[%clk 0:00:01]}  Re6 {[%clk 0:00:03]} 0-1


[Site "https://www.chess.com"]

[Event "Titled Tuesday Blitz January 18 2022"]
[White "Holt, Conrad"]
[Black "Piesik, Piotr"]
[WhiteFideId "2034387"]
[BlackFideId "1136194"]
[WhiteElo "2586"]
[BlackElo "2232"]
[Result "1-0"]
[Round "07"]
[TimeControl "180+1"]
[Date "2022.01.18"]
[WhiteClock "0:02:37"]
[BlackClock "0:02:31"]

1. d4 {[%clk 0:03:00]}  Nf6 {[%clk 0:02:58]} 2. c4 {[%clk 0:02:58]}  e6 {[%clk 0:02:58]} 3. Nc3 {[%clk 0:02:58]}  Bb4 {[%clk 0:02:58]} 4. Qc2 {[%clk 0:02:59]}  d5 {[%clk 0:02:58]} 5. a3 {[%clk 0:02:56]}  Bxc3+ {[%clk 0:02:57]} 6. Qxc3 {[%clk 0:02:57]}  dxc4 {[%clk 0:02:55]} 7. Qxc4 {[%clk 0:02:56]}  O-O {[%clk 0:02:54]} 8. Nf3 {[%clk 0:02:54]}  b6 {[%clk 0:02:55]} 9. g3 {[%clk 0:02:54]}  Ba6 {[%clk 0:02:52]} 10. Qc2 {[%clk 0:02:52]}  Qe7 {[%clk 0:02:45]} 11. Bg2 {[%clk 0:02:50]}  Bb7 {[%clk 0:02:45]} 12. Bg5 {[%clk 0:02:47]}  c5 {[%clk 0:02:43]} 13. Bxf6 {[%clk 0:02:45]}  Qxf6 {[%clk 0:02:43]} 14. Ng5 {[%clk 0:02:43]}  Qxg5 {[%clk 0:02:38]} 15. Bxb7 {[%clk 0:02:43]}  Nd7 {[%clk 0:02:33]} 16. Bxa8 {[%clk 0:02:41]}  Rxa8 {[%clk 0:02:34]} 17. dxc5 {[%clk 0:02:40]}  Nxc5 {[%clk 0:02:32]} 18. O-O {[%clk 0:02:39]}  h5 {[%clk 0:02:32]} 19. b4 {[%clk 0:02:38]}  Nd7 {[%clk 0:02:31]} 20. Qc6 {[%clk 0:02:37]} 1-0


[Site "https://www.chess.com"]

[Event "Titled Tuesday Blitz January 18 2022"]
[White "Howell, David W L"]
[Black "Salinas Herrera, Pablo"]
[WhiteFideId "410608"]
[BlackFideId "3407128"]
[WhiteElo "3012"]
[BlackElo "2855"]
[Result "1-0"]
[Round "07"]
[TimeControl "180+1"]
[Date "2022.01.18"]
[WhiteClock "0:00:04"]
[BlackClock "0:00:02"]

1. e4 {[%clk 0:03:00]}  e5 {[%clk 0:02:56]} 2. Nf3 {[%clk 0:02:58]}  Nc6 {[%clk 0:02:56]} 3. Bc4 {[%clk 0:02:56]}  Bc5 {[%clk 0:02:56]} 4. O-O {[%clk 0:02:51]}  Nf6 {[%clk 0:02:56]} 5. d3 {[%clk 0:02:51]}  O-O {[%clk 0:02:55]} 6. c3 {[%clk 0:02:48]}  d6 {[%clk 0:02:55]} 7. h3 {[%clk 0:02:41]}  Ne7 {[%clk 0:02:54]} 8. Re1 {[%clk 0:02:37]}  Ng6 {[%clk 0:02:53]} 9. Nbd2 {[%clk 0:02:37]}  Bb6 {[%clk 0:02:52]} 10. d4 {[%clk 0:02:28]}  c6 {[%clk 0:02:50]} 11. Bf1 {[%clk 0:02:24]}  Re8 {[%clk 0:02:41]} 12. a4 {[%clk 0:02:21]}  h6 {[%clk 0:02:36]} 13. Qc2 {[%clk 0:02:06]}  Be6 {[%clk 0:02:15]} 14. dxe5 {[%clk 0:02:02]}  dxe5 {[%clk 0:02:15]} 15. Nc4 {[%clk 0:01:56]}  Bc7 {[%clk 0:02:08]} 16. Be3 {[%clk 0:01:52]}  b5 {[%clk 0:02:03]} 17. axb5 {[%clk 0:01:43]}  cxb5 {[%clk 0:01:56]} 18. Ncd2 {[%clk 0:01:42]}  a6 {[%clk 0:01:53]} 19. Red1 {[%clk 0:01:26]}  Qb8 {[%clk 0:01:51]} 20. c4 {[%clk 0:01:18]}  b4 {[%clk 0:01:51]} 21. c5 {[%clk 0:01:17]}  a5 {[%clk 0:01:51]} 22. Bc4 {[%clk 0:01:09]}  Bxc4 {[%clk 0:01:36]} 23. Nxc4 {[%clk 0:01:06]}  b3 {[%clk 0:01:35]} 24. Qb1 {[%clk 0:01:01]}  a4 {[%clk 0:01:35]} 25. Nb6 {[%clk 0:01:00]}  Bxb6 {[%clk 0:01:31]} 26. cxb6 {[%clk 0:01:01]}  Qb7 {[%clk 0:01:31]} 27. Nd2 {[%clk 0:00:59]}  Rec8 {[%clk 0:01:29]} 28. Qd3 {[%clk 0:00:57]}  Nf8 {[%clk 0:01:18]} 29. Nc4 {[%clk 0:00:50]}  Nxe4 {[%clk 0:01:15]} 30. Nxe5 {[%clk 0:00:40]}  Nc5 {[%clk 0:01:08]} 31. Qd5 {[%clk 0:00:38]}  Qxd5 {[%clk 0:01:01]} 32. Rxd5 {[%clk 0:00:39]}  Nb7 {[%clk 0:01:02]} 33. Nd3 {[%clk 0:00:28]}  Rc2 {[%clk 0:00:43]} 34. Rd4 {[%clk 0:00:26]}  a3 {[%clk 0:00:29]} 35. bxa3 {[%clk 0:00:27]}  Ra2 {[%clk 0:00:27]} 36. Rb1 {[%clk 0:00:25]}  R2xa3 {[%clk 0:00:28]} 37. Rb4 {[%clk 0:00:24]}  Ne6 {[%clk 0:00:24]} 38. R4xb3 {[%clk 0:00:23]}  Rxb3 {[%clk 0:00:24]} 39. Rxb3 {[%clk 0:00:23]}  Kf8 {[%clk 0:00:25]} 40. g4 {[%clk 0:00:22]}  Ke7 {[%clk 0:00:25]} 41. Kg2 {[%clk 0:00:23]}  Kd6 {[%clk 0:00:25]} 42. Rc3 {[%clk 0:00:21]}  Ra4 {[%clk 0:00:24]} 43. Kg3 {[%clk 0:00:21]}  g5 {[%clk 0:00:24]} 44. f4 {[%clk 0:00:19]}  f6 {[%clk 0:00:16]} 45. f5 {[%clk 0:00:16]}  Ned8 {[%clk 0:00:16]} 46. Nc5 {[%clk 0:00:13]}  Ra2 {[%clk 0:00:06]} 47. Nxb7+ {[%clk 0:00:07]}  Nxb7 {[%clk 0:00:06]} 48. Bd4 {[%clk 0:00:08]}  Ra6 {[%clk 0:00:02]} 49. h4 {[%clk 0:00:04]}  Kd5 {[%clk 0:00:02]} 50. Bxf6 {[%clk 0:00:03]}  gxh4+ {[%clk 0:00:02]} 51. Kxh4 {[%clk 0:00:04]}  Rxb6 {[%clk 0:00:03]} 52. Bg7 {[%clk 0:00:03]}  Nd6 {[%clk 0:00:03]} 53. Rh3 {[%clk 0:00:01]}  Ne4 {[%clk 0:00:03]} 54. Kh5 {[%clk 0:00:01]}  Nf2 {[%clk 0:00:03]} 55. Rh4 {[%clk 0:00:01]}  Rc6 {[%clk 0:00:02]} 56. Bxh6 {[%clk 0:00:02]}  Ne4 {[%clk 0:00:02]} 57. g5 {[%clk 0:00:02]}  Ng3+ {[%clk 0:00:02]} 58. Kg4 {[%clk 0:00:02]}  Ne4 {[%clk 0:00:03]} 59. g6 {[%clk 0:00:03]}  Rc4 {[%clk 0:00:03]} 60. Bf4 {[%clk 0:00:03]}  Nf6+ {[%clk 0:00:03]} 61. Kg5 {[%clk 0:00:04]}  Ne4+ {[%clk 0:00:04]} 62. Kh6 {[%clk 0:00:05]}  Rc6 {[%clk 0:00:03]} 63. Kh5 {[%clk 0:00:04]}  Nf6+ {[%clk 0:00:02]} 64. Kg5 {[%clk 0:00:04]}  Ne4+ {[%clk 0:00:03]} 65. Kh6 {[%clk 0:00:05]}  Nf6 {[%clk 0:00:03]} 66. Bg5 {[%clk 0:00:05]}  Ne4 {[%clk 0:00:03]} 67. Rh5 {[%clk 0:00:05]}  Ke5 {[%clk 0:00:04]} 68. Kh7 {[%clk 0:00:05]}  Kxf5 {[%clk 0:00:04]} 69. g7 {[%clk 0:00:06]}  Rc7 {[%clk 0:00:04]} 70. Kh8 {[%clk 0:00:05]}  Kg6 {[%clk 0:00:03]} 71. g8=Q+ {[%clk 0:00:05]}  Kxh5 {[%clk 0:00:04]} 72. Bd8 {[%clk 0:00:05]}  Rc5 {[%clk 0:00:03]} 73. Qe8+ {[%clk 0:00:04]}  Kh6 {[%clk 0:00:03]} 74. Qxe4 {[%clk 0:00:04]}  Rc8 {[%clk 0:00:02]} 75. Qe6+ {[%clk 0:00:04]} 1-0


[Site "https://www.chess.com"]

[Event "Titled Tuesday Blitz January 18 2022"]
[White "Jary, Sergey"]
[Black "Vignesh, N R"]
[WhiteFideId "14110350"]
[BlackFideId "25012215"]
[WhiteElo "2260"]
[BlackElo "2395"]
[Result "1-0"]
[Round "07"]
[TimeControl "180+1"]
[Date "2022.01.18"]
[WhiteClock "0:01:31"]
[BlackClock "0:01:18"]

1. e4 {[%clk 0:03:00]}  c6 {[%clk 0:02:58]} 2. d4 {[%clk 0:03:00]}  d5 {[%clk 0:02:58]} 3. Nd2 {[%clk 0:03:01]}  dxe4 {[%clk 0:02:57]} 4. Nxe4 {[%clk 0:03:02]}  Bf5 {[%clk 0:02:57]} 5. Ng3 {[%clk 0:03:01]}  Bg6 {[%clk 0:02:57]} 6. Bc4 {[%clk 0:03:02]}  e6 {[%clk 0:02:54]} 7. N1e2 {[%clk 0:03:02]}  Bd6 {[%clk 0:02:52]} 8. h4 {[%clk 0:02:44]}  h5 {[%clk 0:02:48]} 9. Nf4 {[%clk 0:02:45]}  Bxf4 {[%clk 0:02:45]} 10. Bxf4 {[%clk 0:02:44]}  Nf6 {[%clk 0:02:44]} 11. Qd2 {[%clk 0:02:36]}  Ne4 {[%clk 0:02:42]} 12. Nxe4 {[%clk 0:02:32]}  Bxe4 {[%clk 0:02:43]} 13. f3 {[%clk 0:02:32]}  Bd5 {[%clk 0:02:39]} 14. Bd3 {[%clk 0:02:30]}  b5 {[%clk 0:02:36]} 15. b3 {[%clk 0:02:30]}  e5 {[%clk 0:02:02]} 16. Bxe5 {[%clk 0:02:30]}  f6 {[%clk 0:01:58]} 17. Bg3 {[%clk 0:02:25]}  Kf7 {[%clk 0:01:57]} 18. c4 {[%clk 0:02:19]}  bxc4 {[%clk 0:01:57]} 19. bxc4 {[%clk 0:02:20]}  Be6 {[%clk 0:01:57]} 20. Qc3 {[%clk 0:02:13]}  Nd7 {[%clk 0:01:50]} 21. O-O {[%clk 0:02:14]}  Nb6 {[%clk 0:01:46]} 22. Rfe1 {[%clk 0:02:09]}  Na4 {[%clk 0:01:45]} 23. Qb3 {[%clk 0:02:04]}  Qxd4+ {[%clk 0:01:31]} 24. Bf2 {[%clk 0:01:50]}  Nc5 {[%clk 0:01:24]} 25. Bxd4 {[%clk 0:01:50]}  Nxb3 {[%clk 0:01:24]} 26. axb3 {[%clk 0:01:51]}  Rhd8 {[%clk 0:01:23]} 27. Be4 {[%clk 0:01:31]}  Rxd4 {[%clk 0:01:18]} 28. Bxc6 {[%clk 0:01:31]} 1-0


[Site "https://www.chess.com"]